lending/lending_fUSD_20251116
["ID","MTS","AMOUNT","RATE_DAILY","PERIOD"]
[394119755,1763307048750,-151.0,0.000214,2]
[394119756,1763307048760,-502.03384973,0.0002145,2]
[394119757,1763307048770,-150.39,0.0002149,2]
[394119758,1763307048780,-51916.38663746,0.000215,2]
[394119759,1763307048790,-220.3225361,0.000215,2]
[394119760,1763307048801,-154.259977,0.000216,2]
[394119761,1763307048813,-166.116633,0.000216,2]
[394119762,1763307048832,-151.0,0.000216,2]
[394119763,1763307048844,-151.0,0.000216,2]
[394119764,1763307048855,-151.0,0.000216,2]
[394119765,1763307048864,-221.145144,0.000216,2]
[394119766,1763307048874,-151.0,0.000216,2]
[394119767,1763307048884,-274.660546,0.000216,2]
[394119768,1763307048895,-151.0,0.000216,2]
[394119769,1763307048905,-151.0,0.000216,2]
[394119770,1763307048916,-181.446107,0.000216,2]
[394119771,1763307048927,-151.0,0.000216,2]
[394119772,1763307048936,-1150.6082,0.000216,2]
[394119773,1763307048946,-1150.6082,0.000216,2]
[394119774,1763307048955,-151.0,0.000216,2]
[394119775,1763307048964,-1150.6082,0.000216,2]
[394119776,1763307048974,-151.0,0.000216,2]
[394119777,1763307048984,-1150.6082,0.000216,2]
[394119778,1763307048994,-151.0,0.000216,2]
[394119779,1763307049003,-156.325988,0.000216,2]
[394119780,1763307049013,-151.0,0.000216,2]
[394119781,1763307049022,-151.0,0.000216,2]
[394119782,1763307049031,-151.0,0.000216,2]
[394119783,1763307049041,-218.123202,0.000216,2]
[394119784,1763307049052,-151.0,0.000216,2]
[394119785,1763307049062,-256.52052,0.000216,2]
[394119786,1763307049071,-151.0,0.000216,2]
[394119787,1763307049081,-256.52052,0.000216,2]
[394119788,1763307049091,-151.0,0.000216,2]
[394119789,1763307049100,-151.0,0.000216,2]
[394119790,1763307049110,-256.52052,0.000216,2]
[394119791,1763307049123,-256.52052,0.000216,2]
[394119792,1763307049133,-228.424467,0.000216,2]
[394119793,1763307049143,-228.424467,0.000216,2]
[394119794,1763307049152,-228.424467,0.000216,2]
[394119795,1763307049162,-228.424467,0.000216,2]
[394119796,1763307049171,-687.64518768,0.00021672,2]
[394119797,1763307049181,-2741.61835602,0.00021698,2]
[394119798,1763307049191,-150.39,0.00021698,2]
[394119799,1763307049200,-150.39,0.00021698,2]
[394119800,1763307049210,-150.39,0.00021698,2]
[394119801,1763307049219,-151.0,0.00021708,2]
[394119802,1763307049229,-250.0,0.00021708,2]
[394119803,1763307049392,-250.0,0.00021708,2]
[394119804,1763307049403,-250.0,0.00021708,2]
[394119805,1763307049412,-250.0,0.00021708,2]
[394119806,1763307049421,-250.0,0.00021708,2]
[394119807,1763307049430,-250.0,0.00021708,2]
[394119808,1763307049439,-250.0,0.00021708,2]
[394119809,1763307049448,-250.0,0.00021708,2]
[394119810,1763307049459,-250.0,0.00021708,2]
[394119811,1763307049473,-250.0,0.00021708,2]
[394119812,1763307049483,-250.0,0.00021708,2]
[394119813,1763307049492,-250.0,0.00021708,2]
[394119814,1763307049501,-250.0,0.00021708,2]
[394119815,1763307049511,-151.0,0.00021708,2]
[394119816,1763307049521,-250.0,0.00021708,2]
[394119817,1763307049530,-250.0,0.00021708,2]
[394119818,1763307049540,-151.0,0.00021708,2]
[394119819,1763307049550,-250.0,0.00021708,2]
[394119820,1763307049561,-151.0,0.00021708,2]
[394119821,1763307049570,-250.0,0.00021708,2]
[394119822,1763307049579,-151.0,0.00021708,2]
[394119823,1763307049588,-250.0,0.00021708,2]
[394119824,1763307049597,-250.0,0.00021708,2]
[394119825,1763307049607,-181.0,0.00021708,2]
[394119826,1763307049616,-250.0,0.00021708,2]
[394119827,1763307049625,-250.0,0.00021708,2]
[394119828,1763307049634,-250.0,0.00021708,2]
[394119829,1763307049643,-21013.0,0.00021708,2]
[394119830,1763307049653,-250.0,0.00021708,2]
[394119831,1763307049662,-21013.0,0.00021708,2]
[394119832,1763307049672,-250.0,0.00021708,2]
[394119833,1763307049681,-21013.0,0.00021708,2]
[394119834,1763307049691,-250.0,0.00021708,2]
[394119835,1763307049700,-21013.0,0.00021708,2]
[394119836,1763307049710,-250.0,0.00021708,2]
[394119837,1763307049720,-21013.0,0.00021708,2]
[394119838,1763307049730,-250.0,0.00021708,2]
[394119839,1763307049740,-500.0,0.00021708,2]
[394119840,1763307049750,-21013.0,0.00021708,2]
[394119841,1763307049759,-500.0,0.00021708,2]
[394119842,1763307049770,-21013.0,0.00021708,2]
[394119843,1763307049781,-250.0,0.00021708,2]
[394119844,1763307049791,-322.6107,0.00021708,2]
[394119845,1763307049801,-500.0,0.00021708,2]
[394119846,1763307049811,-21013.0,0.00021708,2]
[394119847,1763307049820,-250.0,0.00021708,2]
[394119848,1763307049829,-500.0,0.00021708,2]
[394119849,1763307049840,-314.97225511,0.00021708,2]
[394119850,1763307049852,-500.0,0.00021708,2]
[394119851,1763307049862,-21013.0,0.00021708,2]
[394119852,1763307049873,-574.12855637,0.00021708,2]
[394119853,1763307049882,-621.62538416,0.00021708,2]
[394119854,1763307049895,-21013.0,0.00021708,2]
[394119855,1763307049905,-21013.0,0.00021708,2]
[394119856,1763307049914,-500.0,0.00021708,2]
[394119857,1763307049924,-250.0,0.00021708,2]
[394119858,1763307049934,-500.0,0.00021708,2]
[394119859,1763307049947,-250.0,0.00021708,2]
[394119860,1763307049959,-250.0,0.00021708,2]
[394119861,1763307049969,-500.0,0.00021708,2]
[394119862,1763307049978,-250.0,0.00021708,2]
[394119863,1763307049990,-591.23609277,0.00021708,2]
[394119864,1763307050001,-250.0,0.00021708,2]
[394119865,1763307050010,-250.0,0.00021708,2]
[394119866,1763307050020,-250.0,0.00021708,2]
[394119867,1763307050029,-250.0,0.00021708,2]
[394119868,1763307050038,-250.0,0.00021708,2]
[394119869,1763307050047,-250.0,0.00021708,2]
[394119870,1763307050057,-250.0,0.00021708,2]
[394119871,1763307050066,-220.0,0.00021708,2]
[394119872,1763307050075,-221.12663668,0.00021708,2]
[394119873,1763307050084,-250.0,0.00021708,2]
[394119874,1763307050094,-250.0,0.00021708,2]
[394119875,1763307050103,-250.0,0.00021708,2]
[394119876,1763307050112,-250.0,0.00021708,2]
[394119877,1763307050121,-250.0,0.00021708,2]
[394119878,1763307050131,-151.0,0.00021708,2]
[394119879,1763307050140,-250.0,0.00021708,2]
[394119880,1763307050149,-250.0,0.00021708,2]
[394119881,1763307050158,-250.0,0.00021708,2]
[394119882,1763307050168,-250.0,0.00021708,2]
[394119883,1763307050177,-250.0,0.00021708,2]
[394119884,1763307050187,-250.0,0.00021708,2]
[394119885,1763307050197,-277.35679052,0.00021708,2]
[394119886,1763307050206,-151.0,0.00021708,2]
[394119887,1763307050215,-151.0,0.00021708,2]
[394119888,1763307050234,-151.0,0.00021708,2]
[394119889,1763307050246,-151.0,0.00021708,2]
[394119890,1763307050257,-151.0,0.00021708,2]
[394119891,1763307050266,-151.0,0.00021708,2]
[394119892,1763307050276,-151.0,0.00021708,2]
[394119893,1763307050286,-151.0,0.00021708,2]
[394119894,1763307050297,-151.0,0.00021708,2]
[394119895,1763307050307,-249.011704,0.00021708,2]
[394119896,1763307050319,-249.011704,0.00021708,2]
[394119897,1763307050330,-151.0,0.00021708,2]
[394119898,1763307050340,-249.011704,0.00021708,2]
[394119899,1763307050350,-151.0,0.00021708,2]
[394119900,1763307050360,-279.229407,0.00021708,2]
[394119901,1763307050370,-249.011704,0.00021708,2]
[394119902,1763307050379,-151.0,0.00021708,2]
[394119903,1763307050389,-151.0,0.00021708,2]
[394119904,1763307050398,-279.229407,0.00021708,2]
[394119905,1763307050408,-151.0,0.00021708,2]
[394119906,1763307050418,-279.229407,0.00021708,2]
[394119907,1763307050427,-151.0,0.00021708,2]
[394119908,1763307050437,-279.229407,0.00021708,2]
[394119909,1763307050447,-183.398054,0.00021708,2]
[394119910,1763307050457,-155.471458,0.00021708,2]
[394119911,1763307050472,-151.0,0.00021708,2]
[394119912,1763307050481,-151.0,0.00021708,2]
[394119913,1763307050491,-151.0,0.00021708,2]
[394119914,1763307050501,-151.0,0.00021708,2]
[394119915,1763307050514,-307.289572,0.00021708,2]
[394119916,1763307050524,-151.0,0.00021708,2]
[394119917,1763307050534,-151.0,0.00021708,2]
[394119918,1763307050546,-307.289572,0.00021708,2]
[394119919,1763307050556,-307.289572,0.00021708,2]
[394119920,1763307050566,-151.0,0.00021708,2]
[394119921,1763307050576,-151.0,0.00021708,2]
[394119922,1763307050586,-152.793394,0.00021708,2]
[394119923,1763307050596,-307.289572,0.00021708,2]
[394119924,1763307050605,-151.0,0.00021708,2]
[394119925,1763307050615,-151.0,0.00021708,2]
[394119926,1763307050624,-151.0,0.00021708,2]
[394119927,1763307050634,-153.382593,0.00021708,2]
[394119928,1763307050643,-151.0,0.00021708,2]
[394119929,1763307050652,-151.0,0.00021708,2]
[394119930,1763307050661,-151.0,0.00021708,2]
[394119931,1763307050671,-151.0,0.00021708,2]
[394119932,1763307050680,-151.0,0.00021708,2]
[394119933,1763307050690,-165.104213,0.00021708,2]
[394119934,1763307050699,-151.0,0.00021708,2]
[394119935,1763307050708,-181.815183,0.00021708,2]
[394119936,1763307050718,-181.815183,0.00021708,2]
[394119937,1763307050727,-151.0,0.00021708,2]
[394119938,1763307050736,-151.0,0.00021708,2]
[394119939,1763307050747,-219.91859,0.00021708,2]
[394119940,1763307050756,-181.815183,0.00021708,2]
[394119941,1763307050766,-151.0,0.00021708,2]
[394119942,1763307050776,-219.91859,0.00021708,2]
[394119943,1763307050786,-181.815183,0.00021708,2]
[394119944,1763307050795,-151.0,0.00021708,2]
[394119945,1763307050806,-151.0,0.00021708,2]
[394119946,1763307050815,-219.91859,0.00021708,2]
[394119947,1763307050825,-219.91859,0.00021708,2]
[394119948,1763307050835,-289.87748,0.00021708,2]
[394119949,1763307050844,-289.87748,0.00021708,2]
[394119950,1763307050854,-289.87748,0.00021708,2]
[394119951,1763307050864,-151.0,0.00021708,2]
[394119952,1763307050875,-151.0,0.00021708,2]
[394119953,1763307050885,-289.87748,0.00021708,2]
[394119954,1763307050895,-151.0,0.00021708,2]
[394119955,1763307050907,-193.063553,0.00021708,2]
[394119956,1763307050917,-151.0,0.00021708,2]
[394119957,1763307050928,-151.0,0.00021708,2]
[394119958,1763307050937,-151.0,0.00021708,2]
[394119959,1763307050949,-151.0,0.00021708,2]
[394119960,1763307050958,-151.0,0.00021708,2]
[394119961,1763307050967,-151.0,0.00021708,2]
[394119962,1763307050976,-151.0,0.00021708,2]
[394119963,1763307050986,-151.0,0.00021708,2]
[394119964,1763307050995,-151.0,0.00021708,2]
[394119965,1763307051006,-151.0,0.00021708,2]
[394119966,1763307051017,-282.167892,0.00021708,2]
[394119967,1763307051026,-151.0,0.00021708,2]
[394119968,1763307051037,-1207.925092,0.00021708,2]
[394119969,1763307051048,-282.167892,0.00021708,2]
[394119970,1763307051058,-151.0,0.00021708,2]
[394119971,1763307051067,-1207.925092,0.00021708,2]
[394119972,1763307051076,-282.167892,0.00021708,2]
[394119973,1763307051086,-1207.925092,0.00021708,2]
[394119974,1763307051096,-282.167892,0.00021708,2]
[394119975,1763307051107,-151.0,0.00021708,2]
[394119976,1763307051117,-151.0,0.00021708,2]
[394119977,1763307051127,-1207.925092,0.00021708,2]
[394119978,1763307051136,-151.0,0.00021708,2]
[394119979,1763307051145,-151.0,0.00021708,2]
[394119980,1763307051155,-151.0,0.00021708,2]
[394119981,1763307051164,-151.0,0.00021708,2]
[394119982,1763307051174,-151.0,0.00021708,2]
[394119983,1763307051183,-151.0,0.00021708,2]
[394119984,1763307051193,-151.0,0.00021708,2]
[394119985,1763307051202,-151.0,0.00021708,2]
[394119986,1763307051211,-151.0,0.00021708,2]
[394119987,1763307051220,-165.515484,0.00021708,2]
[394119988,1763307051229,-151.0,0.00021708,2]
[394119989,1763307051239,-150.0,0.00021773,2]
[394119990,1763307051248,-215.28694092,0.0002185,2]
[394119991,1763307051259,-500.0,0.000219,7]
[394119992,1763307051268,-5000.0,0.00021918,2]
[394119993,1763307051278,-500.0,0.00021918,5]
[394119994,1763307051287,-181.08010149,0.00021918,2]
[394119995,1763307051297,-185.05737826,0.00021921,2]
[394119996,1763307051307,-579.6332187,0.00021956,2]
[394119997,1763307051317,-666.0,0.00021999,2]
[394119998,1763307051327,-513.39,0.00022,7]
[394119999,1763307051336,-100393.00646887,0.00022,4]
[394120000,1763307051346,-151.0,0.00022,2]
[394120001,1763307051356,-151.0,0.00022,2]
[394120002,1763307051365,-9199.9908,0.00022,2]
[394120003,1763307051375,-152.826328,0.00022,2]
[394120004,1763307051384,-9199.9908,0.00022,2]
[394120005,1763307051393,-9199.9908,0.00022,2]
[394120006,1763307051403,-9199.9908,0.00022,2]
[394120007,1763307051412,-151.0,0.00022,2]
[394120008,1763307051422,-151.0,0.00022,2]
[394120009,1763307051431,-151.0,0.00022,2]
[394120010,1763307051440,-151.0,0.00022,2]
[394120011,1763307051449,-151.0,0.00022,2]
[394120012,1763307051458,-157.528084,0.00022,2]
[394120013,1763307051472,-151.0,0.00022,2]
[394120014,1763307051482,-190.432946,0.00022,2]
[394120015,1763307051491,-190.432946,0.00022,2]
[394120016,1763307051501,-190.432946,0.00022,2]
[394120017,1763307051656,-1118.53893,0.00022,2]
[394120018,1763307051667,-190.432946,0.00022,2]
[394120019,1763307051678,-1118.53893,0.00022,2]
[394120020,1763307051690,-151.0,0.00022,2]
[394120021,1763307051701,-1118.53893,0.00022,2]
[394120022,1763307051712,-151.0,0.00022,2]
[394120023,1763307051724,-1118.53893,0.00022,2]
[394120024,1763307051734,-151.0,0.00022,2]
[394120025,1763307051743,-151.0,0.00022,2]
[394120026,1763307051752,-151.0,0.00022,2]
[394120027,1763307051761,-151.0,0.00022,2]
[394120028,1763307051771,-151.0,0.00022,2]
[394120029,1763307051780,-151.0,0.00022,2]
[394120030,1763307051789,-151.0,0.00022,2]
[394120031,1763307051798,-172.62,0.00022,2]
[394120032,1763307051809,-151.0,0.00022,2]
[394120033,1763307051818,-151.0,0.00022,2]
[394120034,1763307051829,-151.0,0.00022,2]
[394120035,1763307051838,-151.0,0.00022,2]
[394120036,1763307051847,-504.5964297,0.00022114,2]
[394120037,1763307051857,-3292.0,0.00022157,2]
[394120038,1763307051867,-454.0,0.00022209,2]
[394120039,1763307051876,-479.06402154,0.00022225,2]
[394120040,1763307051886,-454.0,0.00022227,2]
[394120041,1763307051896,-595.37131296,0.00022256,2]
[394120042,1763307051906,-151.0,0.00022256,2]
[394120043,1763307051916,-256.50445864,0.00022315,2]
[394120044,1763307051925,-150.0,0.00022315,2]
[394120045,1763307051934,-250.0,0.00022321,2]
[394120046,1763307051944,-454.0,0.00022323,2]
[394120047,1763307051953,-500.0,0.00022466,5]
[394120048,1763307051962,-187.78006525,0.00022466,2]
[394120049,1763307051972,-454.0,0.00022542,2]
[394120050,1763307051981,-454.0,0.00022549,2]
[394120051,1763307051991,-454.0,0.00022589,2]
[394120052,1763307052000,-454.0,0.00022593,2]
[394120053,1763307052010,-454.0,0.00022618,2]
[394120054,1763307052019,-418.24,0.0002263,2]
[394120055,1763307052029,-500.0,0.00022699,2]
[394120056,1763307052038,-454.0,0.00022772,2]
[394120057,1763307052048,-204.325718,0.000228,2]
[394120058,1763307052059,-617.40005154,0.00022804,2]
[394120059,1763307052069,-239.14760503,0.00022804,2]
[394120060,1763307052078,-350.0,0.00022868,2]
[394120061,1763307052088,-1000.0,0.00022872,2]
[394120062,1763307052097,-454.0,0.00022881,2]
[394120063,1763307052107,-454.0,0.0002292,2]
[394120064,1763307052117,-150.0,0.00022935,4]
[394120065,1763307052126,-500.0,0.00022973,2]
[394120066,1763307052135,-500.0,0.00022973,2]
[394120067,1763307052145,-629.18442253,0.00023,7]
[394120068,1763307052155,-1000.0,0.00023006,2]
[394120069,1763307052164,-500.0,0.00023014,5]
[394120070,1763307052173,-194.72792766,0.00023014,2]
[394120071,1763307052183,-151.0,0.00023077,2]
[394120072,1763307052192,-334.5472959,0.00023077,2]
[394120073,1763307052202,-287.61899177,0.00023077,2]
[394120074,1763307052213,-2563.86516149,0.000231,2]
[394120075,1763307052223,-1000.0,0.00023143,2]
[394120076,1763307052233,-4985.35903114,0.000232,2]
[394120077,1763307052242,-398.11212609,0.000232,2]
[394120078,1763307052251,-454.0,0.0002321,2]
[394120079,1763307052261,-454.0,0.00023266,2]
[394120080,1763307052271,-1000.0,0.00023279,2]
[394120081,1763307052281,-151.0,0.00023279,2]
[394120082,1763307052292,-151.0,0.00023279,2]
[394120083,1763307052301,-165.539216,0.00023279,2]
[394120084,1763307052312,-151.0,0.00023279,2]
[394120085,1763307052322,-151.0,0.00023279,2]
[394120086,1763307052332,-151.0,0.00023279,2]
[394120087,1763307052343,-1150.6082,0.00023279,2]
[394120088,1763307052354,-1150.6082,0.00023279,2]
[394120089,1763307052363,-1150.6082,0.00023279,2]
[394120090,1763307052374,-151.0,0.00023279,2]
[394120091,1763307052384,-1150.6082,0.00023279,2]
[394120092,1763307052394,-151.0,0.00023279,2]
[394120093,1763307052404,-151.0,0.00023279,2]
[394120094,1763307052414,-151.0,0.00023279,2]
[394120095,1763307052423,-151.0,0.00023279,2]
[394120096,1763307052434,-151.0,0.00023279,2]
[394120097,1763307052445,-256.52052,0.00023279,2]
[394120098,1763307052454,-151.0,0.00023279,2]
[394120099,1763307052466,-256.52052,0.00023279,2]
[394120100,1763307052477,-151.0,0.00023279,2]
[394120101,1763307052486,-151.0,0.00023279,2]
[394120102,1763307052496,-256.52052,0.00023279,2]
[394120103,1763307052507,-256.52052,0.00023279,2]
[394120104,1763307052517,-228.424467,0.00023279,2]
[394120105,1763307052527,-228.424467,0.00023279,2]
[394120106,1763307052536,-228.424467,0.00023279,2]
[394120107,1763307052548,-228.424467,0.00023279,2]
[394120108,1763307052559,-11581.17907004,0.00023333,7]
[394120109,1763307052568,-640.24385345,0.00023352,2]
[394120110,1763307052578,-666.0,0.00023394,2]
[394120111,1763307052587,-151.0,0.00023395,7]
[394120112,1763307052596,-151.0,0.00023395,7]
[394120113,1763307052606,-282.167892,0.00023395,7]
[394120114,1763307052616,-151.0,0.00023395,7]
[394120115,1763307052625,-1207.925092,0.00023395,7]
[394120116,1763307052634,-282.167892,0.00023395,7]
[394120117,1763307052644,-151.0,0.00023395,7]
[394120118,1763307052654,-1207.925092,0.00023395,7]
[394120119,1763307052664,-282.167892,0.00023395,7]
[394120120,1763307052673,-1207.925092,0.00023395,7]
[394120121,1763307052682,-282.167892,0.00023395,7]
[394120122,1763307052692,-228.315147,0.00023395,7]
[394120123,1763307052702,-151.0,0.00023395,7]
[394120124,1763307052711,-151.0,0.00023395,7]
[394120125,1763307052722,-1207.925092,0.00023395,7]
[394120126,1763307052731,-151.0,0.00023395,7]
[394120127,1763307052741,-151.0,0.00023395,7]
[394120128,1763307052751,-151.0,0.00023395,7]
[394120129,1763307052760,-151.0,0.00023395,7]
[394120130,1763307052770,-151.0,0.00023395,7]
[394120131,1763307052779,-206.276826,0.00023395,7]
[394120132,1763307052788,-151.0,0.00023395,7]
[394120133,1763307052798,-151.0,0.00023395,7]
[394120134,1763307052807,-479.06402154,0.000234,7]
[394120135,1763307052817,-454.0,0.00023408,2]
[394120136,1763307052826,-287.48898412,0.00023416,2]
[394120137,1763307052836,-454.0,0.00023499,2]
[394120138,1763307052846,-513.39,0.000235,7]
[394120139,1763307052855,-200.0,0.000235,2]
[394120140,1763307052865,-454.0,0.00023521,2]
[394120141,1763307052874,-454.0,0.00023539,2]
[394120142,1763307052883,-150.0,0.00023555,4]
[394120143,1763307052892,-500.0,0.00023562,5]
[394120144,1763307052902,-201.93286099,0.00023562,2]
[394120145,1763307052911,-454.0,0.00023583,2]
[394120146,1763307052920,-500.0,0.00023768,2]
[394120147,1763307052930,-454.0,0.00023794,2]
[394120148,1763307052939,-454.0,0.0002389,2]
[394120149,1763307052948,-418.24,0.00023891,2]
[394120150,1763307052958,-663.93287602,0.000239,2]
[394120151,1763307052968,-1500.0,0.00024,2]
[394120152,1763307052977,-1500.0,0.00024,2]
[394120153,1763307052987,-1500.0,0.00024,2]
[394120154,1763307052996,-1025.88,0.00024,2]
[394120155,1763307053006,-1012.0755497,0.00024,2]
[394120156,1763307053015,-426.46,0.00024041,2]
[394120157,1763307053024,-454.0,0.00024058,2]
[394120158,1763307053033,-1599.0,0.00024095,2]
[394120159,1763307053043,-821.0,0.00024095,2]
[394120160,1763307053052,-793.0,0.00024095,2]
[394120161,1763307053063,-1275.0,0.00024095,2]
[394120162,1763307053073,-907.0,0.00024095,2]
[394120163,1763307053083,-1190.0,0.00024095,2]
[394120164,1763307053093,-1604.0,0.00024095,2]
[394120165,1763307053104,-704.0,0.00024095,2]
[394120166,1763307053113,-1318.0,0.00024095,2]
[394120167,1763307053123,-3430.0,0.00024095,2]
[394120168,1763307053133,-2000.0,0.000241,2]
[394120169,1763307053142,-500.0,0.0002411,5]
[394120170,1763307053152,-209.40437684,0.0002411,2]
[394120171,1763307053161,-5556.0,0.00024163,2]
[394120172,1763307053170,-150.0,0.00024175,4]
[394120173,1763307053180,-454.0,0.00024179,2]
[394120174,1763307053189,-418.12012153,0.0002421,2]
[394120175,1763307053198,-3663.86805983,0.0002421,2]
[394120176,1763307053208,-579.6332187,0.00024233,2]
[394120177,1763307053218,-454.0,0.00024257,2]
[394120178,1763307053228,-493.34280791,0.00024304,5]
[394120179,1763307053237,-454.0,0.00024315,2]
[394120180,1763307053248,-2393.0,0.00024328,2]
[394120181,1763307053258,-1000.0,0.00024339,2]
[394120182,1763307053268,-454.0,0.00024339,2]
[394120183,1763307053278,-172.62,0.00024432,2]
[394120184,1763307053288,-151.0,0.00024446,2]
[394120185,1763307053298,-346.92554585,0.00024446,2]
[394120186,1763307053309,-42.84136516,0.00024446,2]
[394120187,1763307053793,-255.4195293,0.00024446,2]
[394120188,1763307053803,-688.49839244,0.00024448,2]
[394120189,1763307053813,-592.23865605,0.0002465,2]
[394120190,1763307053824,-166.02760448,0.0002465,2]
[394120191,1763307053834,-177.6,0.00024658,5]
[394120192,1763307053844,-352.0,0.00024658,2]
[394120193,1763307053854,-352.0,0.00024658,2]
[394120194,1763307053864,-352.0,0.00024658,2]
[394120195,1763307053873,-352.0,0.00024658,2]
[394120196,1763307053883,-352.0,0.00024658,2]
[394120197,1763307053891,-352.0,0.00024658,2]
[394120198,1763307053901,-619.08,0.00024658,2]
[394120199,1763307053910,-278.0,0.00024658,2]
[394120200,1763307053919,-278.0,0.00024658,2]
[394120201,1763307053928,-278.0,0.00024658,2]
[394120202,1763307053937,-278.0,0.00024658,2]
[394120203,1763307053947,-278.0,0.00024658,2]
[394120204,1763307053956,-278.0,0.00024658,2]
[394120205,1763307053964,-278.0,0.00024658,2]
[394120206,1763307053974,-278.0,0.00024658,2]
[394120207,1763307053983,-278.0,0.00024658,2]
[394120208,1763307053992,-278.0,0.00024658,2]
[394120209,1763307054002,-278.0,0.00024658,2]
[394120210,1763307054011,-278.0,0.00024658,2]
[394120211,1763307054021,-278.0,0.00024658,2]
[394120212,1763307054030,-278.0,0.00024658,2]
[394120213,1763307054039,-352.0,0.00024658,2]
[394120214,1763307054049,-352.0,0.00024658,2]
[394120215,1763307054059,-352.0,0.00024658,2]
[394120216,1763307054068,-352.0,0.00024658,2]
[394120217,1763307054078,-352.0,0.00024658,2]
[394120218,1763307054087,-352.0,0.00024658,2]
[394120219,1763307054097,-272.0,0.00024658,2]
[394120220,1763307054106,-272.0,0.00024658,2]
[394120221,1763307054115,-272.0,0.00024658,2]
[394120222,1763307054126,-272.0,0.00024658,2]
[394120223,1763307054135,-272.0,0.00024658,2]
[394120224,1763307054144,-272.0,0.00024658,2]
[394120225,1763307054154,-272.0,0.00024658,2]
[394120226,1763307054164,-272.0,0.00024658,2]
[394120227,1763307054173,-272.0,0.00024658,2]
[394120228,1763307054183,-272.0,0.00024658,2]
[394120229,1763307054193,-272.0,0.00024658,2]
[394120230,1763307054202,-272.0,0.00024658,2]
[394120231,1763307054212,-272.0,0.00024658,2]
[394120232,1763307054222,-272.0,0.00024658,2]
[394120233,1763307054232,-354.0,0.00024658,2]
[394120234,1763307054241,-354.0,0.00024658,2]
[394120235,1763307054251,-354.0,0.00024658,2]
[394120236,1763307054260,-354.0,0.00024658,2]
[394120237,1763307054269,-354.0,0.00024658,2]
[394120238,1763307054279,-354.0,0.00024658,2]
[394120239,1763307054288,-271.0,0.00024658,2]
[394120240,1763307054297,-271.0,0.00024658,2]
[394120241,1763307054307,-271.0,0.00024658,2]
[394120242,1763307054316,-271.0,0.00024658,2]
[394120243,1763307054325,-271.0,0.00024658,2]
[394120244,1763307054335,-271.0,0.00024658,2]
[394120245,1763307054345,-271.0,0.00024658,2]
[394120246,1763307054354,-271.0,0.00024658,2]
[394120247,1763307054363,-271.0,0.00024658,2]
[394120248,1763307054372,-271.0,0.00024658,2]
[394120249,1763307054381,-271.0,0.00024658,2]
[394120250,1763307054391,-271.0,0.00024658,2]
[394120251,1763307054400,-271.0,0.00024658,2]
[394120252,1763307054409,-271.0,0.00024658,2]
[394120253,1763307054419,-353.0,0.00024658,2]
[394120254,1763307054428,-353.0,0.00024658,2]